bitfinex/quotes_SOLUSD_20230904
["timestamp","ask_amount","ask_price","bid_price","bid_amount"]
[1693845116444,8.027,19.434,19.427,16.985]
[1693845116750,8.027,19.434,19.428,1.80806393]
[1693845117049,33.96,19.434,19.428,1.80806393]
[1693845117251,33.96,19.434,19.426,5.82306393]
[1693845119343,33.96,19.434,19.426,1.80806393]
[1693845119955,33.96,19.434,19.426,5.82306393]
[1693845120554,33.96,19.434,19.426,4.015]
[1693845120757,33.96,19.434,19.427,0.53993693]
[1693845121440,33.96,19.434,19.426,1.09504342]
[1693845122048,33.96,19.434,19.425,4.015]
[1693845122444,33.96,19.434,19.426,1.09504342]
[1693845122644,33.96,19.434,19.427,4.014]
[1693845122841,33.96,19.434,19.426,4.015]
[1693845123449,33.96,19.434,19.426,16.987]
[1693845124356,33.96,19.434,19.426,4.015]
[1693845128348,0.91680463,19.433,19.426,4.015]
[1693845128555,8.028,19.431,19.426,4.015]
[1693845129145,8.028,19.431,19.425,4.015]
[1693845131059,33.965,19.431,19.425,4.015]
[1693845131252,33.965,19.431,19.412,90.1082]
[1693845131458,34.04,19.43,19.418,21.80806393]
[1693845131653,8.974,19.427,19.419,16.992]
[1693845131859,8.03,19.428,19.42,1.80806393]
[1693845132065,8.03,19.428,19.422,4.015]
[1693845132266,8.03,19.428,19.423,1.80806393]
[1693845132467,8.03,19.428,19.423,5.82306393]
[1693845133367,59.979,19.43,19.423,5.82306393]
[1693845133368,8.029,19.429,19.423,5.82306393]
[1693845133764,33.969,19.429,19.421,4.016]
[1693845133957,90.585,19.429,19.421,4.016]
[1693845134158,90.585,19.429,19.422,1.1324137]
[1693845134375,90.585,19.429,19.422,4.015]
[1693845135476,33.969,19.429,19.422,4.015]
[1693845136370,0.69269335,19.428,19.422,4.015]
[1693845136571,8.03,19.427,19.422,4.015]
[1693845136982,8.03,19.427,19.421,4.016]
[1693845137664,33.973,19.427,19.42,4.016]
[1693845138478,8.03,19.427,19.421,0.76105371]
[1693845138663,8.029,19.428,19.422,4.015]
[1693845138863,8.03,19.427,19.422,4.015]
[1693845140172,8.03,19.427,19.421,4.016]
[1693845140373,33.973,19.427,19.42,4.016]
[1693845140678,33.973,19.427,19.421,0.64172252]
[1693845140869,33.973,19.427,19.421,59.016]
[1693845141179,33.973,19.427,19.421,4.016]
[1693845141371,33.973,19.427,19.42,4.96682246]
[1693845141563,33.973,19.427,19.42,59.96682246]
[1693845144978,33.973,19.427,19.42,4.96682246]
[1693845145182,33.973,19.427,19.414,66.71498455]
[1693845145183,33.973,19.427,19.418,1.18657248]
[1693845145374,33.973,19.427,19.418,4.016]
[1693845145574,33.973,19.427,19.419,1.80806393]
[1693845146081,33.973,19.427,19.418,1.80806393]
[1693845147683,33.973,19.427,19.419,4.016]
[1693845150389,8.029,19.428,19.42,1.80806393]
[1693845150588,8.029,19.428,19.422,4.015]
[1693845151174,33.97,19.428,19.421,4.016]
[1693845151891,33.97,19.428,19.42,4.016]
[1693845152079,0.92241606,19.427,19.419,4.016]
[1693845152279,8.031,19.425,19.419,4.016]
[1693845152985,33.976,19.425,19.419,4.016]
[1693845153285,33.976,19.425,19.418,55.0]
[1693845153492,33.976,19.425,19.419,0.82740731]
[1693845154289,33.976,19.425,19.419,4.84340731]
[1693845154492,33.976,19.425,19.418,4.016]
[1693845158188,33.976,19.425,19.416,28.326]
[1693845158189,33.976,19.425,19.416,4.017]
[1693845158378,33.976,19.425,19.417,0.68769166]
[1693845158578,33.976,19.425,19.417,4.017]
[1693845159387,33.976,19.425,19.417,0.95534747]
[1693845159592,33.976,19.425,19.417,4.97234747]
[1693845159795,33.976,19.425,19.417,4.017]
[1693845160382,33.976,19.425,19.413,1.28460692]
[1693845160580,33.976,19.425,19.416,1.80806393]
[1693845161080,33.976,19.425,19.416,5.82506393]
[1693845162887,33.976,19.425,19.415,5.82506393]
[1693845167894,126.6953,19.425,19.415,5.82506393]
[1693845183123,126.6953,19.425,19.415,1.80806393]
[1693845185517,126.6953,19.425,19.415,5.82506393]
[1693845185709,126.6953,19.425,19.415,4.017]
[1693845186015,126.6953,19.425,19.416,1.80806393]
[1693845188521,126.6953,19.425,19.415,1.80806393]
[1693845189422,126.6953,19.425,19.415,5.82506393]
[1693845193516,126.6953,19.425,19.415,1.80806393]
[1693845194425,126.6953,19.425,19.415,5.82506393]
[1693845195411,126.6953,19.425,19.415,1.80806393]
[1693845196128,126.6953,19.425,19.415,5.82506393]
[1693845200321,55.0,19.424,19.415,5.82506393]
[1693845200522,33.982,19.422,19.415,4.017]
[1693845206037,8.032,19.422,19.416,0.65333088]
[1693845206234,8.032,19.422,19.416,4.67033088]
[1693845206419,8.032,19.422,19.416,4.017]
[1693845206822,33.981,19.422,19.413,41.311]
[1693845207026,33.981,19.422,19.415,4.017]
[1693845218156,92.7193,19.425,19.415,16.996]
[1693845218336,92.7193,19.425,19.416,1.80806393]
[1693845218532,34.04,19.43,19.418,45.316]
[1693845218732,0.92241606,19.429,19.42,34.04]
[1693845218948,8.027,19.433,19.422,96.534]
[1693845219157,90.8797,19.439,19.423,1.80806393]
[1693845219158,0.92241606,19.432,19.423,1.80806393]
[1693845219344,8.028,19.432,19.425,4.015]
[1693845219849,8.94941606,19.433,19.425,16.987]
[1693845220443,8.027,19.433,19.425,16.987]
[1693845221157,0.92241606,19.432,19.425,16.987]
[1693845222446,8.95041606,19.432,19.425,16.987]
[1693845223644,0.92241606,19.432,19.425,16.987]
[1693845223951,8.94941606,19.433,19.425,16.987]
[1693845224857,0.92241606,19.433,19.426,55.0]
[1693845225161,8.94741606,19.438,19.428,45.293]
[1693845225544,8.94741606,19.438,19.431,4.014]
[1693845226136,91.46541606,19.438,19.429,4.014]
[1693845227137,91.46541606,19.438,19.428,4.014]
[1693845228754,91.46541606,19.438,19.428,16.984]
[1693845230060,91.46541606,19.438,19.428,4.014]
[1693845230252,91.46541606,19.438,19.426,4.015]
[1693845230449,55.0,19.437,19.42,62.36]
[1693845230758,0.92241606,19.431,19.425,4.015]
[1693845230960,8.028,19.43,19.425,4.015]
[1693845232751,33.967,19.43,19.421,0.54427962]
[1693845232963,0.92241606,19.429,19.422,4.015]
[1693845233161,8.03,19.427,19.422,4.015]
[1693845233961,8.03,19.427,19.421,4.016]
[1693845236264,8.03,19.427,19.42,59.016]
[1693845236460,8.03,19.427,19.421,0.88036763]
[1693845236650,8.03,19.427,19.42,4.016]
[1693845236854,33.973,19.427,19.416,12.978]
[1693845237049,33.973,19.427,19.418,4.016]
[1693845237050,0.92241606,19.426,19.418,4.016]
[1693845237246,8.031,19.424,19.419,0.57759564]
[1693845237442,8.031,19.424,19.418,1.16269052]
[1693845237855,25.943,19.427,19.419,4.016]
[1693845238058,8.031,19.425,19.419,4.016]
[1693845239058,8.031,19.425,19.418,4.016]
[1693845240362,8.031,19.425,19.418,16.993]
[1693845240663,8.03,19.426,19.419,0.51845153]
[1693845240869,8.03,19.426,19.421,4.016]
[1693845243765,8.03,19.426,19.42,4.016]
[1693845245763,25.941,19.429,19.421,0.82279908]
[1693845245969,8.029,19.428,19.423,4.015]
[1693845246352,33.97,19.428,19.422,4.016]
[1693845247264,33.97,19.428,19.421,4.016]
[1693845247566,0.92241606,19.427,19.414,43.11606393]
[1693845247867,193.061,19.424,19.414,1.80806393]
[1693845248173,55.0,19.423,19.413,4.017]
[1693845248362,33.984,19.42,19.413,4.017]
[1693845249070,33.984,19.42,19.412,4.018]
[1693845249274,33.984,19.42,19.413,0.5939087]
[1693845249567,33.984,19.42,19.413,4.017]
[1693845249766,33.984,19.42,19.414,0.76859274]
[1693845250271,33.984,19.42,19.413,4.017]
[1693845250457,33.984,19.42,19.414,1.80806393]
[1693845251074,33.984,19.42,19.414,5.82506393]
[1693845251374,33.984,19.42,19.414,1.80806393]
[1693845252360,33.984,19.42,19.414,5.82506393]
[1693845252675,33.984,19.42,19.414,4.017]
[1693845253574,33.984,19.42,19.414,1.80806393]
[1693845254375,33.984,19.42,19.414,5.82506393]
[1693845254562,33.984,19.42,19.414,4.017]
[1693845255277,68.024,19.42,19.413,4.017]
[1693845255468,68.024,19.42,19.413,1.80806393]
[1693845256782,68.024,19.42,19.412,4.018]
[1693845257287,68.024,19.42,19.413,0.50058832]
[1693845257589,68.024,19.42,19.406,25.7434149]
[1693845257590,68.024,19.42,19.401,51.284]
[1693845257768,75.0,19.419,19.403,1.80806393]
[1693845258080,193.156,19.415,19.403,4.019]
[1693845258258,193.156,19.415,19.404,1.80806393]
[1693845258667,193.156,19.415,19.402,1.80806393]
[1693845258867,193.156,19.415,19.404,4.019]
[1693845259074,91.6387,19.414,19.404,4.019]
[1693845259281,8.036,19.411,19.404,4.019]
[1693845259675,34.0,19.411,19.401,41.336]
[1693845259880,34.0,19.411,19.403,4.019]
[1693845261882,34.0,19.411,19.403,17.006]
[1693845262763,8.036,19.411,19.403,17.006]
[1693845263776,91.6387,19.414,19.403,45.352]
[1693845263968,99.6737,19.414,19.407,17.004]
[1693845264389,8.035,19.414,19.407,17.004]
[1693845270270,8.035,19.414,19.407,4.019]
[1693845271482,8.035,19.414,19.407,17.004]
[1693845271686,8.035,19.414,19.408,55.0]
[1693845271887,8.035,19.414,19.409,4.018]
[1693845272084,20.0,19.419,19.409,4.018]
[1693845272274,25.956,19.417,19.409,17.001]
[1693845272976,76.646,19.419,19.409,17.001]
[1693845272977,34.04,19.42,19.409,17.001]
[1693845273177,142.7343625,19.425,19.41,1.78581857]
[1693845273389,8.033,19.42,19.41,56.78581857]
[1693845273685,8.033,19.42,19.413,16.997]
[1693845274880,8.033,19.42,19.413,4.017]
[1693845275091,8.033,19.42,19.41,83.334]
[1693845275092,90.627,19.42,19.412,4.017]
[1693845275277,90.627,19.42,19.411,59.018]
[1693845275597,90.627,19.42,19.411,4.018]
[1693845275777,90.627,19.42,19.411,59.018]
[1693845275977,90.627,19.42,19.411,72.0]
[1693845277494,33.985,19.42,19.411,72.0]
[1693845277879,33.985,19.42,19.412,0.86231956]
[1693845278194,33.985,19.42,19.413,4.017]
[1693845282179,33.985,19.42,19.412,4.018]
[1693845282885,75.0,19.419,19.403,12.987]
[1693845283078,193.156,19.415,19.404,1.19090433]
[1693845283281,193.156,19.415,19.402,4.02]
[1693845283494,193.156,19.415,19.403,1.27237698]
[1693845283998,90.654,19.415,19.403,17.006]
[1693845284186,90.654,19.415,19.404,1.80806393]
[1693845284386,90.654,19.415,19.407,4.019]
[1693845287396,8.035,19.415,19.407,17.004]
[1693845287601,8.035,19.415,19.408,55.0]
[1693845287899,33.994,19.415,19.401,1.80806393]
[1693845288695,33.994,19.415,19.405,4.019]
[1693845289702,33.994,19.415,19.405,17.005]
[1693845289903,33.994,19.415,19.405,45.348]
[1693845290289,8.035,19.415,19.405,45.348]
[1693845290500,33.994,19.415,19.405,45.348]
[1693845291401,33.994,19.415,19.406,0.50584549]
[1693845291592,33.994,19.415,19.408,4.018]
[1693845296496,33.994,19.415,19.407,4.019]
[1693845298198,33.994,19.415,19.405,12.985]
[1693845298510,33.994,19.415,19.406,4.019]
[1693845299101,33.994,19.415,19.406,17.004]
[1693845302195,33.994,19.415,19.406,4.019]
[1693845305711,33.994,19.415,19.406,17.004]
[1693845305913,8.035,19.415,19.407,55.0]
[1693845306114,8.035,19.415,19.409,17.001]
[1693845307311,8.035,19.415,19.409,4.018]
[1693845309598,8.035,19.415,19.409,17.001]
[1693845318616,8.035,19.415,19.407,12.984]
[1693845318908,90.651,19.415,19.405,1.80806393]
[1693845319111,90.651,19.415,19.4,28.349]
[1693845319112,90.651,19.415,19.404,1.80806393]
[1693845319714,91.9743,19.414,19.404,1.80806393]
[1693845319915,90.668,19.411,19.404,5.82706393]
[1693845321307,34.04,19.41,19.404,1.80806393]
[1693845321511,90.682,19.409,19.399,4.02]
[1693845321713,90.682,19.409,19.4,1.80806393]
[1693845322718,90.682,19.409,19.4,56.80806393]
[1693845323407,90.682,19.409,19.4,60.82806393]
[1693845331506,90.682,19.409,19.4,5.82806393]
[1693845331922,90.682,19.409,19.4,4.02]
[1693845332325,90.682,19.409,19.401,0.6157045]
[1693845332513,90.682,19.409,19.4,4.02]
[1693845333221,90.682,19.409,19.401,0.54388524]
[1693845333722,90.682,19.409,19.401,4.56388524]
[1693845333925,34.005,19.409,19.401,4.02]
[1693845334127,41.59175257,19.413,19.402,1.57195289]
[1693845334328,8.036,19.412,19.405,17.005]
[1693845334629,8.036,19.412,19.406,1.57195289]
[1693845334839,8.036,19.412,19.406,4.019]
[1693845335016,33.999,19.412,19.406,4.019]
[1693845339127,33.999,19.412,19.404,12.986]
[1693845339128,33.999,19.412,19.405,4.019]
[1693845339327,33.999,19.412,19.403,4.019]
[1693845339526,33.999,19.412,19.404,0.83051225]
[1693845341329,33.999,19.412,19.404,4.84951225]
[1693845341528,33.999,19.412,19.404,4.019]
[1693845342331,33.999,19.412,19.403,59.019]
[1693845342530,33.999,19.412,19.404,0.93752456]
[1693845343327,33.999,19.412,19.404,4.95652456]
[1693845343834,33.999,19.412,19.403,4.019]
[1693845344530,33.999,19.412,19.404,0.81624336]
[1693845346322,33.999,19.412,19.404,4.83524336]
[1693845346525,33.999,19.412,19.404,4.019]
[1693845348433,33.999,19.412,19.404,17.006]
[1693845349133,33.999,19.412,19.404,4.019]
[1693845353535,8.036,19.412,19.404,4.019]
[1693845353744,8.036,19.412,19.404,17.006]
[1693845354425,8.035,19.413,19.404,45.35]
[1693845356641,33.996,19.413,19.404,45.35]
[1693845357524,33.996,19.413,19.405,0.6781384]
[1693845357725,33.996,19.413,19.406,4.019]
[1693845358533,33.996,19.413,19.396,20.0]
[1693845358726,41.95463917,19.417,19.402,1.80806393]
[1693845358727,34.007,19.408,19.402,1.80806393]
[1693845359337,34.007,19.408,19.398,4.02]
[1693845359823,34.007,19.408,19.395,12.992]
[1693845360028,34.007,19.408,19.396,1.1997333]
[1693845360942,34.007,19.408,19.396,18.2127333]
[1693845361239,34.007,19.408,19.396,17.013]
[1693845362842,55.0,19.407,19.394,4.021]
[1693845363041,193.262,19.404,19.393,4.021]
[1693845363244,193.262,19.404,19.394,0.7384348]
[1693845363449,193.262,19.404,19.395,4.021]
[1693845363644,98.4001,19.403,19.395,4.021]
[1693845363828,8.04,19.401,19.395,4.021]
[1693845364329,34.018,19.401,19.395,4.021]
[1693845365345,34.018,19.401,19.394,4.021]
[1693845368044,34.04,19.4,19.373,58.18788751]
[1693845368241,8.042,19.398,19.393,4.021]
[1693845368545,8.041,19.399,19.393,4.021]
[1693845369428,34.021,19.399,19.392,4.022]
[1693845371740,34.021,19.399,19.38,171.74037778]
[1693845371929,34.021,19.399,19.385,4.023]
[1693845372428,34.021,19.399,19.385,17.022]
[1693845373048,34.021,19.399,19.386,55.0]
[1693845373345,34.021,19.399,19.386,59.023]
[1693845373648,34.021,19.399,19.385,4.023]
[1693845374351,55.0,19.398,19.385,4.023]
[1693845374545,8.043,19.395,19.385,17.022]
[1693845374844,8.043,19.396,19.385,17.022]
[1693845375447,34.027,19.396,19.386,55.0]
[1693845375948,34.027,19.396,19.389,4.022]
[1693845376147,8.043,19.396,19.389,4.022]
[1693845376339,34.027,19.396,19.387,4.023]
[1693845377834,34.027,19.396,19.387,17.021]
[1693845378137,8.043,19.396,19.387,17.021]
[1693845378543,34.027,19.396,19.387,17.021]
[1693845378742,8.043,19.396,19.387,17.021]
[1693845382634,34.027,19.396,19.387,17.021]
[1693845382838,34.027,19.396,19.387,4.023]
[1693845383147,34.027,19.396,19.386,55.0]
[1693845383354,34.027,19.396,19.386,59.023]
[1693845385237,34.027,19.396,19.386,72.022]
[1693845386346,34.027,19.396,19.386,59.023]
[1693845386545,34.027,19.396,19.386,4.023]
[1693845390448,34.027,19.396,19.384,4.023]
[1693845390964,94.0673,19.395,19.384,4.023]
[1693845391254,34.034,19.392,19.384,4.023]
[1693845392648,8.043,19.394,19.384,17.023]
[1693845392848,8.043,19.394,19.385,55.0]
[1693845393049,8.043,19.394,19.387,4.023]
[1693845393555,34.03,19.394,19.387,4.023]
[1693845394447,34.03,19.394,19.386,4.023]
[1693845397151,34.03,19.394,19.386,17.022]
[1693845397663,8.043,19.394,19.386,17.022]
[1693845400370,34.03,19.394,19.386,17.022]
[1693845401059,34.03,19.394,19.386,4.023]
[1693845403670,90.748,19.394,19.386,4.023]
[1693845420879,90.748,19.394,19.385,4.023]
[1693845421966,90.748,19.394,19.384,4.023]
[1693845425379,90.748,19.394,19.384,17.023]
[1693845438091,34.04,19.39,19.384,17.023]
[1693845438275,90.748,19.394,19.384,17.023]
[1693845438276,8.045,19.389,19.384,17.023]
[1693845438676,8.045,19.389,19.384,4.023]
[1693845440682,34.039,19.389,19.383,4.024]
[1693845441289,34.039,19.389,19.381,13.001]
[1693845442598,34.039,19.389,19.383,4.024]
[1693845442790,34.039,19.389,19.381,12.025]
[1693845442991,0.86057513,19.388,19.381,12.025]
[1693845443295,0.86057513,19.388,19.383,4.024]
[1693845443495,1.12389248,19.389,19.383,17.025]
[1693845443699,8.045,19.391,19.383,17.025]
[1693845444487,34.04,19.39,19.383,17.025]
[1693845444688,42.085,19.39,19.383,17.025]
[1693845448695,8.045,19.39,19.383,17.025]
[1693845448999,8.045,19.39,19.383,4.024]
[1693845450108,34.037,19.39,19.383,4.024]
[1693845450292,68.077,19.39,19.383,4.024]
[1693845451004,34.037,19.39,19.383,59.024]
[1693845451605,34.037,19.39,19.383,4.024]
[1693845452190,8.045,19.39,19.383,4.024]
[1693845452594,8.045,19.39,19.383,17.025]
[1693845453602,42.085,19.39,19.383,17.025]
[1693845457016,8.045,19.39,19.383,4.024]
[1693845457198,41.0314595,19.396,19.383,17.025]
[1693845457511,3.13496102,19.397,19.387,45.39]
[1693845457819,3.13496102,19.394,19.386,4.023]
[1693845457992,8.044,19.392,19.384,55.0]
[1693845458307,94.9426,19.398,19.386,45.392]
[1693845458503,10.98609144,19.397,19.387,55.0]
[1693845458811,36.96909144,19.397,19.39,17.018]
[1693845459007,2.94409144,19.397,19.39,45.383]
[1693845459496,22.94409144,19.399,19.391,55.0]
[1693845459696,22.94409144,19.399,19.393,17.015]
[1693845459999,30.98509144,19.399,19.393,17.015]
[1693845460198,56.96509144,19.399,19.392,4.022]
[1693845462797,56.96509144,19.399,19.391,59.022]
[1693845462999,56.96509144,19.399,19.391,4.022]
[1693845463411,56.96509144,19.399,19.39,59.022]
[1693845464309,56.96509144,19.399,19.387,4.023]
[1693845465695,56.96509144,19.399,19.387,17.021]
[1693845465915,56.96509144,19.399,19.388,55.0]
[1693845466208,56.96509144,19.399,19.39,4.022]
[1693845466612,2.94409144,19.399,19.39,130.738]
[1693845466916,2.94409144,19.401,19.391,119.10591472]
[1693845467115,3.13654643,19.407,19.394,96.677]
[1693845467416,3.13654643,19.405,19.398,17.01]
[1693845467620,8.039,19.404,19.398,17.01]
[1693845467923,3.13654643,19.403,19.398,17.01]
[1693845468097,8.039,19.404,19.398,17.01]
[1693845468297,8.039,19.406,19.398,17.01]
[1693845468497,3.13654643,19.405,19.398,45.363]
[1693845468708,3.13654643,19.406,19.398,45.363]
[1693845469216,11.17454643,19.406,19.398,45.363]
[1693845470412,11.17454643,19.406,19.399,55.0]
[1693845470613,11.17454643,19.406,19.401,4.02]
[1693845470802,11.17454643,19.406,19.401,59.02]
[1693845473506,37.14554643,19.406,19.399,4.02]
[1693845473708,37.14554643,19.406,19.399,59.02]
[1693845474213,37.14554643,19.406,19.399,4.02]
[1693845474407,11.17454643,19.406,19.399,72.01]
[1693845474913,11.17454643,19.406,19.399,69.412]
[1693845478703,3.13654643,19.406,19.399,92.093]
[1693845478904,11.17454643,19.408,19.399,92.093]
[1693845483713,37.14254643,19.408,19.399,92.093]
[1693845491023,3.13654643,19.408,19.4,34.04]
[1693845491210,56.663,19.413,19.402,36.283]
[1693845491211,3.13654643,19.412,19.402,36.283]
[1693845491413,11.17254643,19.412,19.403,55.0]
[1693845491613,8.036,19.412,19.405,13.603]
[1693845491925,1.12239198,19.411,19.406,55.0]
[1693845492123,8.037,19.41,19.406,55.0]
[1693845492323,8.036,19.411,19.406,58.215]
[1693845492525,8.036,19.411,19.406,3.215]
[1693845495025,34.0,19.411,19.403,3.215]
[1693845495207,0.73397122,19.41,19.403,3.215]
[1693845495412,8.037,19.408,19.403,3.215]
[1693845495613,90.3663,19.416,19.403,3.215]
[1693845495812,8.035,19.414,19.404,0.56093226]
[1693845496039,2.22947063,19.413,19.407,13.603]
[1693845496412,8.035,19.414,19.407,13.603]
[1693845497114,0.71065917,19.413,19.407,13.603]
[1693845497431,0.71065917,19.413,19.408,55.0]
[1693845497651,8.034,19.418,19.409,58.07706393]
[1693845497924,8.034,19.418,19.41,55.0]
[1693845498117,8.034,19.418,19.412,3.214]
[1693845498717,8.033,19.419,19.412,13.599]
[1693845499711,8.033,19.42,19.412,13.599]
[1693845504914,8.033,19.42,19.413,0.5919407]
[1693845505149,8.033,19.42,19.414,3.214]
[1693845505931,8.032,19.421,19.414,3.214]
[1693845506325,8.032,19.423,19.414,36.262]
[1693845507526,33.68505663,19.423,19.414,13.598]
[1693845508125,33.68505663,19.423,19.414,3.214]
[1693845508533,90.31805663,19.423,19.413,3.214]
[1693845508734,90.31805663,19.423,19.414,0.9802202]
[1693845509842,90.31805663,19.423,19.413,3.214]
[1693845510042,90.31805663,19.423,19.414,0.9802202]
[1693845513138,90.31805663,19.423,19.413,1.4456374]
[1693845513837,90.31805663,19.423,19.413,4.6596374]
[1693845514037,7.73705663,19.423,19.413,70.0436374]
[1693845516243,33.68505663,19.423,19.413,70.0436374]
[1693845519347,33.68505663,19.423,19.413,59.6596374]
[1693845522646,33.68505663,19.423,19.413,70.0436374]
[1693845522950,8.032,19.421,19.414,0.86004295]
[1693845523132,8.032,19.421,19.415,3.213]
[1693845524541,8.032,19.422,19.415,3.213]
[1693845525345,8.032,19.422,19.414,58.214]
[1693845525852,33.981,19.422,19.413,3.214]
[1693845526455,33.981,19.422,19.414,0.9627001]
[1693845527041,33.981,19.422,19.414,4.1767001]
[1693845527254,33.981,19.422,19.414,3.214]
[1693845527847,90.617,19.422,19.4,34.04]
[1693845528163,34.04,19.42,19.407,22.51312056]
[1693845528454,90.645,19.417,19.407,22.51312056]
[1693845528962,90.645,19.417,19.408,20.0]
[1693845529142,90.645,19.417,19.409,2.51312056]
[1693845530550,55.0,19.416,19.408,2.51312056]
[1693845530758,55.0,19.416,19.4,3.216]
[1693845530759,193.162,19.414,19.401,2.51312056]
[1693845531154,193.162,19.414,19.402,3.216]
[1693845531155,1.9314898,19.413,19.402,3.216]
[1693845531453,34.003,19.41,19.401,2.51312056]
[1693845531852,34.003,19.41,19.401,57.51312056]
[1693845532446,34.003,19.41,19.401,60.72912056]
[1693845535853,25.966,19.41,19.4,16.62012056]
[1693845536460,8.038,19.408,19.4,16.62012056]
[1693845537165,34.006,19.408,19.4,3.01312056]
[1693845538362,34.006,19.408,19.4,6.22912056]
[1693845539942,34.006,19.408,19.4,3.01312056]
[1693845540248,0.99335228,19.407,19.396,3.01312056]
[1693845540556,90.703,19.404,19.396,3.01312056]
[1693845540740,90.703,19.404,19.396,6.23012056]
[1693845541450,8.039,19.404,19.396,39.30812056]
[1693845544368,34.013,19.404,19.396,39.30812056]
[1693845544755,8.039,19.404,19.396,39.30812056]
[1693845545455,34.013,19.404,19.396,39.30812056]
[1693845545661,34.013,19.404,19.396,6.23012056]
[1693845546366,34.013,19.404,19.396,16.62312056]
[1693845548363,34.013,19.404,19.396,6.23012056]
[1693845550150,34.013,19.404,19.396,3.01312056]
[1693845552160,34.013,19.404,19.395,6.23012056]
[1693845552563,34.013,19.404,19.395,16.62412056]
[1693845552760,94.4093,19.407,19.396,55.0]
[1693845552964,94.4093,19.407,19.399,36.289]
[1693845553269,8.038,19.408,19.4,3.01312056]
[1693845553459,8.038,19.407,19.402,3.216]
[1693845556962,34.008,19.407,19.401,3.216]
[1693845559377,8.038,19.407,19.401,3.216]
[1693845564377,8.035,19.415,19.401,36.286]
[1693845564571,0.96098786,19.414,19.402,58.01312056]
[1693845564774,9.27181524,19.416,19.405,77.295]
[1693845564979,9.27181524,19.416,19.406,58.01312056]
[1693845565205,9.27181524,19.416,19.409,13.601]
[1693845565369,8.034,19.416,19.409,13.601]
[1693845565682,8.034,19.416,19.41,0.82486621]
[1693845565880,8.034,19.416,19.41,3.214]
[1693845566284,0.55872198,19.415,19.41,3.214]
[1693845566583,8.035,19.415,19.41,3.214]
[1693845568081,82.603,19.418,19.41,3.214]
[1693845568275,8.034,19.416,19.41,13.6]
[1693845568583,100.91571133,19.42,19.41,36.268]
[1693845568884,21.9314898,19.419,19.411,55.0]
[1693845569186,8.033,19.418,19.413,3.214]
[1693845569374,1.9314898,19.417,19.413,3.214]
[1693845569773,8.034,19.417,19.413,3.214]
[1693845570082,1.9314898,19.416,19.413,3.214]
[1693845571676,1.9314898,19.418,19.413,36.263]